[Event "Titled Tuesday Blitz November 14 Late 2023"]
[White "el_sporco"]
[Black "Ambartsumova, Karina"]
[BlackFideId "4166299"]
[WhiteElo "2379"]
[BlackElo "2619"]
[Result "0-1"]
[Round "3"]
[TimeControl "180+1"]
[Date "2023.11.14"]
[WhiteClock "0:00:06"]
[BlackClock "0:01:16"]
[Board "48"]

1. e4 {[%clk 0:03:00]}  e5 {[%clk 0:03:00]} 2. Nf3 {[%clk 0:02:42]}  Nc6 {[%clk 0:02:59]} 3. Bb5 {[%clk 0:02:40]}  Nf6 {[%clk 0:02:59]} 4. O-O {[%clk 0:02:40]}  Nxe4 {[%clk 0:02:58]} 5. d4 {[%clk 0:02:40]}  Nd6 {[%clk 0:02:58]} 6. dxe5 {[%clk 0:02:20]}  Nxb5 {[%clk 0:02:57]} 7. a4 {[%clk 0:02:21]}  Nbd4 {[%clk 0:02:55]} 8. Nxd4 {[%clk 0:02:21]}  Nxd4 {[%clk 0:02:55]} 9. Qxd4 {[%clk 0:02:22]}  Be7 {[%clk 0:02:55]} 10. Nc3 {[%clk 0:01:52]}  O-O {[%clk 0:02:54]} 11. Nd5 {[%clk 0:01:42]}  b6 {[%clk 0:02:44]} 12. Bf4 {[%clk 0:01:39]}  Bb7 {[%clk 0:02:40]} 13. Rfd1 {[%clk 0:01:36]}  Bc5 {[%clk 0:02:18]} 14. Qd2 {[%clk 0:01:26]}  a5 {[%clk 0:02:06]} 15. c3 {[%clk 0:01:15]}  Re8 {[%clk 0:02:02]} 16. b4 {[%clk 0:01:08]}  axb4 {[%clk 0:02:02]} 17. cxb4 {[%clk 0:01:09]}  Bxd5 {[%clk 0:02:00]} 18. Qxd5 {[%clk 0:00:52]}  Bxb4 {[%clk 0:02:00]} 19. Qxd7 {[%clk 0:00:53]}  Qxd7 {[%clk 0:01:53]} 20. Rxd7 {[%clk 0:00:54]}  Bc3 {[%clk 0:01:53]} 21. Rc1 {[%clk 0:00:43]}  Rxa4 {[%clk 0:01:27]} 22. Rxc3 {[%clk 0:00:36]}  Rxf4 {[%clk 0:01:27]} 23. Rcxc7 {[%clk 0:00:35]}  g5 {[%clk 0:01:27]} 24. g3 {[%clk 0:00:27]}  Rf5 {[%clk 0:01:25]} 25. Rb7 {[%clk 0:00:26]}  Rexe5 {[%clk 0:01:22]} 26. Rxb6 {[%clk 0:00:14]}  Re1+ {[%clk 0:01:22]} 27. Kg2 {[%clk 0:00:14]}  Re2 {[%clk 0:01:22]} 28. Kh3 {[%clk 0:00:14]}  h5 {[%clk 0:01:17]} 29. f4 {[%clk 0:00:06]}  g4+ {[%clk 0:01:16]} 0-1


[Site "https://www.chess.com"]

[Event "Titled Tuesday Blitz November 14 Late 2023"]
[White "Bujisho, Benjamin"]
[Black "Esquivel Golcher, Luis Enrique"]
[WhiteFideId "608610"]
[BlackFideId "6600174"]
[WhiteElo "2601"]
[BlackElo "2377"]
[Result "1-0"]
[Round "3"]
[TimeControl "180+1"]
[Date "2023.11.14"]
[WhiteClock "0:00:06"]
[BlackClock "0:00:00"]
[Board "49"]

1. d4 {[%clk 0:03:00]}  e6 {[%clk 0:02:58]} 2. c4 {[%clk 0:03:00]}  Bb4+ {[%clk 0:02:58]} 3. Bd2 {[%clk 0:03:00]}  Qe7 {[%clk 0:02:56]} 4. Nc3 {[%clk 0:03:00]}  Nf6 {[%clk 0:02:50]} 5. Nf3 {[%clk 0:02:59]}  Nc6 {[%clk 0:02:50]} 6. g3 {[%clk 0:02:57]}  d6 {[%clk 0:02:47]} 7. Bg2 {[%clk 0:02:57]}  O-O {[%clk 0:02:34]} 8. O-O {[%clk 0:02:56]}  a5 {[%clk 0:02:22]} 9. Rc1 {[%clk 0:02:54]}  e5 {[%clk 0:02:16]} 10. d5 {[%clk 0:02:53]}  Nb8 {[%clk 0:02:14]} 11. a3 {[%clk 0:02:40]}  Bxc3 {[%clk 0:02:10]} 12. Bxc3 {[%clk 0:02:41]}  Bg4 {[%clk 0:02:10]} 13. Nd2 {[%clk 0:02:38]}  Nbd7 {[%clk 0:02:04]} 14. f3 {[%clk 0:02:37]}  Bh5 {[%clk 0:02:04]} 15. e4 {[%clk 0:02:35]}  Nc5 {[%clk 0:02:01]} 16. Qe2 {[%clk 0:01:45]}  Na4 {[%clk 0:01:56]} 17. b3 {[%clk 0:01:42]}  Nxc3 {[%clk 0:01:55]} 18. Rxc3 {[%clk 0:01:43]}  b6 {[%clk 0:01:56]} 19. Rfc1 {[%clk 0:01:36]}  Bg6 {[%clk 0:01:51]} 20. R3c2 {[%clk 0:01:26]}  Nd7 {[%clk 0:01:49]} 21. b4 {[%clk 0:01:23]}  f5 {[%clk 0:01:46]} 22. Nb3 {[%clk 0:01:14]}  fxe4 {[%clk 0:01:39]} 23. fxe4 {[%clk 0:01:15]}  axb4 {[%clk 0:01:35]} 24. axb4 {[%clk 0:01:16]}  Ra3 {[%clk 0:01:35]} 25. Rc3 {[%clk 0:01:13]}  Qg5 {[%clk 0:01:19]} 26. Qe3 {[%clk 0:01:05]}  Qxe3+ {[%clk 0:01:10]} 27. Rxe3 {[%clk 0:01:05]}  Rfa8 {[%clk 0:01:10]} 28. Rec3 {[%clk 0:00:57]}  Nf6 {[%clk 0:01:07]} 29. c5 {[%clk 0:00:48]}  Nxe4 {[%clk 0:00:59]} 30. Bxe4 {[%clk 0:00:45]}  Bxe4 {[%clk 0:01:00]} 31. cxd6 {[%clk 0:00:45]}  cxd6 {[%clk 0:00:58]} 32. Nd2 {[%clk 0:00:33]}  Rxc3 {[%clk 0:00:52]} 33. Rxc3 {[%clk 0:00:32]}  Bxd5 {[%clk 0:00:52]} 34. Rd3 {[%clk 0:00:32]}  Bf7 {[%clk 0:00:42]} 35. Rxd6 {[%clk 0:00:33]}  Re8 {[%clk 0:00:37]} 36. Rxb6 {[%clk 0:00:30]}  e4 {[%clk 0:00:38]} 37. b5 {[%clk 0:00:22]}  e3 {[%clk 0:00:35]} 38. Nf3 {[%clk 0:00:23]}  Bh5 {[%clk 0:00:31]} 39. Ne1 {[%clk 0:00:22]}  e2 {[%clk 0:00:28]} 40. Kg2 {[%clk 0:00:13]}  Kf7 {[%clk 0:00:26]} 41. Rc6 {[%clk 0:00:13]}  Rd8 {[%clk 0:00:22]} 42. Rc5 {[%clk 0:00:11]}  g6 {[%clk 0:00:16]} 43. b6 {[%clk 0:00:08]}  Rd1 {[%clk 0:00:15]} 44. b7 {[%clk 0:00:08]}  Rb1 {[%clk 0:00:15]} 45. Rc7+ {[%clk 0:00:07]}  Kf6 {[%clk 0:00:14]} 46. Kf2 {[%clk 0:00:07]}  Bg4 {[%clk 0:00:14]} 47. Rxh7 {[%clk 0:00:07]}  Bf5 {[%clk 0:00:13]} 48. Rc7 {[%clk 0:00:06]}  Be4 {[%clk 0:00:11]} 49. Rc4 {[%clk 0:00:03]}  Bxb7 {[%clk 0:00:09]} 50. Rc2 {[%clk 0:00:04]}  Ba6 {[%clk 0:00:09]} 51. h3 {[%clk 0:00:04]}  Rb3 {[%clk 0:00:08]} 52. Ra2 {[%clk 0:00:04]}  Bc4 {[%clk 0:00:07]} 53. Rc2 {[%clk 0:00:04]}  Bb5 {[%clk 0:00:07]} 54. Rc5 {[%clk 0:00:04]}  g5 {[%clk 0:00:07]} 55. Rd5 {[%clk 0:00:04]}  Kg6 {[%clk 0:00:06]} 56. g4 {[%clk 0:00:04]}  Kf6 {[%clk 0:00:06]} 57. Rd6+ {[%clk 0:00:05]}  Ke5 {[%clk 0:00:06]} 58. Rb6 {[%clk 0:00:05]}  Kf4 {[%clk 0:00:06]} 59. Rf6+ {[%clk 0:00:03]}  Ke5 {[%clk 0:00:06]} 60. Rg6 {[%clk 0:00:03]}  Kf4 {[%clk 0:00:06]} 61. Rf6+ {[%clk 0:00:04]}  Ke4 {[%clk 0:00:07]} 62. Rf5 {[%clk 0:00:04]}  Rxh3 {[%clk 0:00:05]} 63. Rxb5 {[%clk 0:00:04]}  Rh2+ {[%clk 0:00:02]} 64. Kg3 {[%clk 0:00:04]}  Rh1 {[%clk 0:00:02]} 65. Rb4+ {[%clk 0:00:05]}  Ke3 {[%clk 0:00:00]} 66. Ng2+ {[%clk 0:00:06]} 1-0


[Site "https://www.chess.com"]

[Event "Titled Tuesday Blitz November 14 Late 2023"]
[White "Garrido, Denis"]
[Black "aghasiyevkamal"]
[WhiteFideId "601217"]
[WhiteElo "2375"]
[BlackElo "2596"]
[Result "1-0"]
[Round "3"]
[TimeControl "180+1"]
[Date "2023.11.14"]
[WhiteClock "0:00:30"]
[BlackClock "0:00:00"]
[Board "50"]

1. e4 {[%clk 0:02:58]}  e6 {[%clk 0:02:59]} 2. d4 {[%clk 0:02:58]}  d5 {[%clk 0:02:59]} 3. exd5 {[%clk 0:02:58]}  exd5 {[%clk 0:02:59]} 4. Nf3 {[%clk 0:02:58]}  Nf6 {[%clk 0:02:56]} 5. Bd3 {[%clk 0:02:58]}  c5 {[%clk 0:02:56]} 6. O-O {[%clk 0:02:58]}  c4 {[%clk 0:02:48]} 7. Re1+ {[%clk 0:02:58]}  Be7 {[%clk 0:02:47]} 8. Bf1 {[%clk 0:02:59]}  O-O {[%clk 0:02:44]} 9. b3 {[%clk 0:02:59]}  cxb3 {[%clk 0:02:40]} 10. axb3 {[%clk 0:03:00]}  Nc6 {[%clk 0:02:40]} 11. Ne5 {[%clk 0:03:00]}  Nxe5 {[%clk 0:02:27]} 12. dxe5 {[%clk 0:03:00]}  Ne4 {[%clk 0:02:27]} 13. Be3 {[%clk 0:02:50]}  Be6 {[%clk 0:02:20]} 14. f3 {[%clk 0:02:39]}  Nc5 {[%clk 0:02:15]} 15. Nc3 {[%clk 0:02:39]}  a6 {[%clk 0:02:09]} 16. Ne2 {[%clk 0:02:14]}  Qc7 {[%clk 0:02:07]} 17. f4 {[%clk 0:02:08]}  Bg4 {[%clk 0:01:38]} 18. Qxd5 {[%clk 0:01:54]}  Rad8 {[%clk 0:00:57]} 19. Qc4 {[%clk 0:01:53]}  Rc8 {[%clk 0:00:39]} 20. Nd4 {[%clk 0:01:40]}  Ne4 {[%clk 0:00:36]} 21. Qxc7 {[%clk 0:01:40]}  Rxc7 {[%clk 0:00:36]} 22. Bd3 {[%clk 0:01:39]}  Nc5 {[%clk 0:00:34]} 23. Bf5 {[%clk 0:01:34]}  Bh5 {[%clk 0:00:20]} 24. Bh3 {[%clk 0:01:16]}  f6 {[%clk 0:00:09]} 25. e6 {[%clk 0:01:07]}  Bg6 {[%clk 0:00:06]} 26. f5 {[%clk 0:01:07]}  Be8 {[%clk 0:00:06]} 27. g3 {[%clk 0:01:04]}  Ne4 {[%clk 0:00:04]} 28. Bg2 {[%clk 0:01:03]}  Nd6 {[%clk 0:00:04]} 29. Bf4 {[%clk 0:01:02]}  g5 {[%clk 0:00:03]} 30. Bxd6 {[%clk 0:00:55]}  Bxd6 {[%clk 0:00:04]} 31. Bd5 {[%clk 0:00:54]}  Be7 {[%clk 0:00:04]} 32. Kg2 {[%clk 0:00:51]}  Kg7 {[%clk 0:00:04]} 33. c4 {[%clk 0:00:51]}  Bh5 {[%clk 0:00:04]} 34. Ra2 {[%clk 0:00:50]}  Rd8 {[%clk 0:00:04]} 35. h3 {[%clk 0:00:48]}  Be8 {[%clk 0:00:04]} 36. Rd1 {[%clk 0:00:46]}  Kf8 {[%clk 0:00:03]} 37. Rh1 {[%clk 0:00:44]}  Bc5 {[%clk 0:00:03]} 38. Rd2 {[%clk 0:00:43]}  h5 {[%clk 0:00:03]} 39. g4 {[%clk 0:00:41]}  h4 {[%clk 0:00:03]} 40. Rhd1 {[%clk 0:00:38]}  Ke7 {[%clk 0:00:02]} 41. Nf3 {[%clk 0:00:36]}  Rd6 {[%clk 0:00:02]} 42. Rf1 {[%clk 0:00:36]}  b5 {[%clk 0:00:02]} 43. Nxg5 {[%clk 0:00:33]}  bxc4 {[%clk 0:00:01]} 44. bxc4 {[%clk 0:00:32]}  Bc6 {[%clk 0:00:00]} 45. Ne4 {[%clk 0:00:30]} 1-0


[Site "https://www.chess.com"]

[Event "Titled Tuesday Blitz November 14 Late 2023"]
[White "Ronka, Erik"]
[Black "Holt, Conrad"]
[WhiteFideId "505080"]
[BlackFideId "2034387"]
[WhiteElo "2513"]
[BlackElo "2781"]
[Result "0-1"]
[Round "3"]
[TimeControl "180+1"]
[Date "2023.11.14"]
[WhiteClock "0:00:03"]
[BlackClock "0:00:04"]
[Board "57"]

1. e4 {[%clk 0:03:00]}  e6 {[%clk 0:02:19]} 2. d4 {[%clk 0:02:59]}  d5 {[%clk 0:02:19]} 3. exd5 {[%clk 0:03:00]}  exd5 {[%clk 0:02:19]} 4. Nf3 {[%clk 0:03:01]}  Bd6 {[%clk 0:02:16]} 5. c4 {[%clk 0:03:00]}  Nf6 {[%clk 0:02:14]} 6. Nc3 {[%clk 0:03:00]}  dxc4 {[%clk 0:02:12]} 7. Bxc4 {[%clk 0:03:00]}  O-O {[%clk 0:02:12]} 8. O-O {[%clk 0:03:00]}  Nc6 {[%clk 0:02:12]} 9. h3 {[%clk 0:02:39]}  h6 {[%clk 0:02:09]} 10. Bd3 {[%clk 0:02:07]}  Re8 {[%clk 0:02:01]} 11. a3 {[%clk 0:02:06]}  Be6 {[%clk 0:01:56]} 12. Bc2 {[%clk 0:02:03]}  Bc4 {[%clk 0:01:53]} 13. Re1 {[%clk 0:02:00]}  Rxe1+ {[%clk 0:01:50]} 14. Qxe1 {[%clk 0:02:01]}  Qe7 {[%clk 0:01:38]} 15. Qd1 {[%clk 0:01:55]}  Rd8 {[%clk 0:01:32]} 16. Be3 {[%clk 0:01:50]}  Bc5 {[%clk 0:01:13]} 17. Qd2 {[%clk 0:01:32]}  Bb6 {[%clk 0:01:08]} 18. Rd1 {[%clk 0:01:26]}  Na5 {[%clk 0:00:58]} 19. Bxh6 {[%clk 0:00:57]}  Nb3 {[%clk 0:00:43]} 20. Qg5 {[%clk 0:00:35]}  Qf8 {[%clk 0:00:43]} 21. Qh4 {[%clk 0:00:29]}  gxh6 {[%clk 0:00:08]} 22. Qxf6 {[%clk 0:00:29]}  Rd6 {[%clk 0:00:07]} 23. Qf4 {[%clk 0:00:25]}  Qg7 {[%clk 0:00:05]} 24. Re1 {[%clk 0:00:21]}  Kf8 {[%clk 0:00:02]} 25. Ne4 {[%clk 0:00:18]}  Re6 {[%clk 0:00:02]} 26. Nf6 {[%clk 0:00:15]}  Qxf6 {[%clk 0:00:01]} 27. Qg3 {[%clk 0:00:03]}  Rxe1+ {[%clk 0:00:02]} 28. Nxe1 {[%clk 0:00:04]}  Nxd4 {[%clk 0:00:02]} 29. Be4 {[%clk 0:00:04]}  Be6 {[%clk 0:00:02]} 30. Qd3 {[%clk 0:00:04]}  Nf5 {[%clk 0:00:03]} 31. Nc2 {[%clk 0:00:03]}  Nd6 {[%clk 0:00:03]} 32. Bf3 {[%clk 0:00:03]}  Qf4 {[%clk 0:00:03]} 33. Nb4 {[%clk 0:00:03]}  Qc1+ {[%clk 0:00:04]} 34. Bd1 {[%clk 0:00:02]}  Qf4 {[%clk 0:00:03]} 35. g3 {[%clk 0:00:03]}  Qxf2+ {[%clk 0:00:04]} 36. Kh1 {[%clk 0:00:03]}  Qg1# {[%clk 0:00:04]} 0-1


[Site "https://www.chess.com"]

[Event "Titled Tuesday Blitz November 14 Late 2023"]
[White "Schnaider, Ilan"]
[Black "Rangel, Daniel"]
[WhiteFideId "169013"]
[BlackFideId "2124475"]
[WhiteElo "2730"]
[BlackElo "2513"]
[Result "1-0"]
[Round "3"]
[TimeControl "180+1"]
[Date "2023.11.14"]
[WhiteClock "0:00:11"]
[BlackClock "0:00:08"]
[Board "58"]

1. e4 {[%clk 0:03:00]}  c5 {[%clk 0:03:00]} 2. Nf3 {[%clk 0:03:00]}  g6 {[%clk 0:03:00]} 3. c3 {[%clk 0:03:00]}  Bg7 {[%clk 0:03:00]} 4. d4 {[%clk 0:02:58]}  cxd4 {[%clk 0:03:00]} 5. cxd4 {[%clk 0:02:59]}  d5 {[%clk 0:03:01]} 6. e5 {[%clk 0:02:59]}  Bg4 {[%clk 0:03:01]} 7. Be3 {[%clk 0:02:50]}  e6 {[%clk 0:03:01]} 8. Nbd2 {[%clk 0:02:49]}  Ne7 {[%clk 0:02:59]} 9. Bd3 {[%clk 0:02:45]}  O-O {[%clk 0:02:58]} 10. O-O {[%clk 0:02:43]}  Nbc6 {[%clk 0:02:58]} 11. h3 {[%clk 0:02:43]}  Bxf3 {[%clk 0:02:58]} 12. Nxf3 {[%clk 0:02:43]}  a6 {[%clk 0:02:58]} 13. Qd2 {[%clk 0:02:41]}  b5 {[%clk 0:02:58]} 14. Bg5 {[%clk 0:02:41]}  Qb6 {[%clk 0:02:58]} 15. Bf6 {[%clk 0:02:36]}  Rfc8 {[%clk 0:02:45]} 16. h4 {[%clk 0:02:30]}  Ra7 {[%clk 0:02:34]} 17. h5 {[%clk 0:02:28]}  Nxd4 {[%clk 0:02:30]} 18. Qg5 {[%clk 0:02:07]}  Nxf3+ {[%clk 0:02:16]} 19. gxf3 {[%clk 0:02:08]}  Nf5 {[%clk 0:02:12]} 20. Bxf5 {[%clk 0:02:03]}  exf5 {[%clk 0:02:12]} 21. Rac1 {[%clk 0:01:57]}  Rxc1 {[%clk 0:01:47]} 22. Rxc1 {[%clk 0:01:56]}  Rc7 {[%clk 0:01:48]} 23. Rxc7 {[%clk 0:00:42]}  Qxc7 {[%clk 0:01:48]} 24. Bxg7 {[%clk 0:00:42]}  Kxg7 {[%clk 0:01:48]} 25. Qf6+ {[%clk 0:00:40]}  Kg8 {[%clk 0:01:38]} 26. Kg2 {[%clk 0:00:27]}  Qc8 {[%clk 0:01:30]} 27. h6 {[%clk 0:00:26]}  Qf8 {[%clk 0:01:29]} 28. e6 {[%clk 0:00:24]}  fxe6 {[%clk 0:01:18]} 29. Qxe6+ {[%clk 0:00:25]}  Qf7 {[%clk 0:01:13]} 30. Qc8+ {[%clk 0:00:20]}  Qf8 {[%clk 0:01:13]} 31. Qe6+ {[%clk 0:00:20]}  Qf7 {[%clk 0:01:10]} 32. Qxa6 {[%clk 0:00:19]}  Qd7 {[%clk 0:00:35]} 33. Kf1 {[%clk 0:00:13]}  d4 {[%clk 0:00:28]} 34. Ke2 {[%clk 0:00:14]}  Kf7 {[%clk 0:00:26]} 35. Kd3 {[%clk 0:00:10]}  Qd5 {[%clk 0:00:19]} 36. Qa7+ {[%clk 0:00:09]}  Kf6 {[%clk 0:00:19]} 37. Qxd4+ {[%clk 0:00:09]}  Qxd4+ {[%clk 0:00:17]} 38. Kxd4 {[%clk 0:00:10]}  Kg5 {[%clk 0:00:14]} 39. b3 {[%clk 0:00:10]}  b4 {[%clk 0:00:09]} 40. Kc4 {[%clk 0:00:10]}  Kxh6 {[%clk 0:00:10]} 41. Kxb4 {[%clk 0:00:10]}  Kg5 {[%clk 0:00:10]} 42. a4 {[%clk 0:00:09]}  h5 {[%clk 0:00:10]} 43. a5 {[%clk 0:00:10]}  h4 {[%clk 0:00:10]} 44. a6 {[%clk 0:00:10]}  h3 {[%clk 0:00:11]} 45. a7 {[%clk 0:00:10]}  h2 {[%clk 0:00:12]} 46. a8=Q {[%clk 0:00:10]}  h1=Q {[%clk 0:00:09]} 47. f4+ {[%clk 0:00:10]}  Kxf4 {[%clk 0:00:10]} 48. Qxh1 {[%clk 0:00:11]}  g5 {[%clk 0:00:08]} 49. Kc4 {[%clk 0:00:11]} 1-0


[Site "https://www.chess.com"]

[Event "Titled Tuesday Blitz November 14 Late 2023"]
[White "Richter, Paul"]
[Black "Goltsev, Dmitry"]
[WhiteFideId "2046350"]
[BlackFideId "24176710"]
[WhiteElo "2511"]
[BlackElo "2728"]
[Result "1-0"]
[Round "3"]
[TimeControl "180+1"]
[Date "2023.11.14"]
[WhiteClock "0:00:06"]
[BlackClock "0:00:01"]
[Board "59"]

1. e4 {[%clk 0:03:00]}  e6 {[%clk 0:02:59]} 2. d4 {[%clk 0:03:00]}  d5 {[%clk 0:03:00]} 3. Nc3 {[%clk 0:03:01]}  c5 {[%clk 0:03:00]} 4. exd5 {[%clk 0:03:00]}  exd5 {[%clk 0:03:01]} 5. Nf3 {[%clk 0:03:00]}  Nf6 {[%clk 0:03:01]} 6. Bb5+ {[%clk 0:03:00]}  Nc6 {[%clk 0:03:01]} 7. h3 {[%clk 0:03:00]}  Bd6 {[%clk 0:03:00]} 8. dxc5 {[%clk 0:02:58]}  Bxc5 {[%clk 0:03:01]} 9. O-O {[%clk 0:02:57]}  O-O {[%clk 0:03:01]} 10. Bg5 {[%clk 0:02:58]}  h6 {[%clk 0:03:00]} 11. Bxf6 {[%clk 0:02:55]}  Qxf6 {[%clk 0:03:00]} 12. Qxd5 {[%clk 0:02:55]}  Bb6 {[%clk 0:03:00]} 13. Bd3 {[%clk 0:02:40]}  Re8 {[%clk 0:02:53]} 14. Rfe1 {[%clk 0:02:34]}  Be6 {[%clk 0:02:27]} 15. Qe4 {[%clk 0:02:31]}  g6 {[%clk 0:02:27]} 16. Nd5 {[%clk 0:02:21]}  Bxd5 {[%clk 0:01:59]} 17. Qxd5 {[%clk 0:02:22]}  Kg7 {[%clk 0:01:53]} 18. Qb5 {[%clk 0:01:30]}  Rad8 {[%clk 0:01:25]} 19. Rxe8 {[%clk 0:01:28]}  Rxe8 {[%clk 0:01:25]} 20. c3 {[%clk 0:01:25]}  Re7 {[%clk 0:01:04]} 21. Rf1 {[%clk 0:01:18]}  Ne5 {[%clk 0:00:42]} 22. Nxe5 {[%clk 0:01:13]}  Rxe5 {[%clk 0:00:43]} 23. Qc4 {[%clk 0:01:09]}  Rg5 {[%clk 0:00:39]} 24. Qe4 {[%clk 0:01:02]}  Qd6 {[%clk 0:00:22]} 25. Kh1 {[%clk 0:00:50]}  Re5 {[%clk 0:00:15]} 26. Qf3 {[%clk 0:00:48]}  Bc7 {[%clk 0:00:14]} 27. g3 {[%clk 0:00:46]}  Re6 {[%clk 0:00:12]} 28. Bc4 {[%clk 0:00:23]}  Rf6 {[%clk 0:00:12]} 29. Qe4 {[%clk 0:00:24]}  b6 {[%clk 0:00:11]} 30. Kg2 {[%clk 0:00:23]}  Qc5 {[%clk 0:00:11]} 31. Bb3 {[%clk 0:00:20]}  a5 {[%clk 0:00:11]} 32. h4 {[%clk 0:00:19]}  h5 {[%clk 0:00:11]} 33. a4 {[%clk 0:00:19]}  Bd6 {[%clk 0:00:08]} 34. Qd5 {[%clk 0:00:18]}  Qc7 {[%clk 0:00:08]} 35. f4 {[%clk 0:00:17]}  Bc5 {[%clk 0:00:07]} 36. Re1 {[%clk 0:00:17]}  Rd6 {[%clk 0:00:07]} 37. Qf3 {[%clk 0:00:17]}  Rd2+ {[%clk 0:00:07]} 38. Re2 {[%clk 0:00:17]}  Qd6 {[%clk 0:00:07]} 39. Kh3 {[%clk 0:00:15]}  Rd3 {[%clk 0:00:05]} 40. Qe4 {[%clk 0:00:13]}  Qd7+ {[%clk 0:00:02]} 41. Kg2 {[%clk 0:00:13]}  Qd6 {[%clk 0:00:02]} 42. Qe8 {[%clk 0:00:12]}  Rd2 {[%clk 0:00:02]} 43. Qxf7+ {[%clk 0:00:11]}  Kh6 {[%clk 0:00:02]} 44. Qe8 {[%clk 0:00:09]}  Rxe2+ {[%clk 0:00:01]} 45. Qxe2 {[%clk 0:00:10]}  Qc6+ {[%clk 0:00:02]} 46. Qf3 {[%clk 0:00:09]}  Qd7 {[%clk 0:00:02]} 47. Qe2 {[%clk 0:00:08]}  Qc6+ {[%clk 0:00:02]} 48. Kh2 {[%clk 0:00:08]}  Qd7 {[%clk 0:00:02]} 49. Bc2 {[%clk 0:00:08]}  Qd6 {[%clk 0:00:01]} 50. Qe4 {[%clk 0:00:08]}  Qd2+ {[%clk 0:00:01]} 51. Kh3 {[%clk 0:00:09]}  Qd6 {[%clk 0:00:02]} 52. f5 {[%clk 0:00:07]}  Qd7 {[%clk 0:00:02]} 53. Kh2 {[%clk 0:00:06]}  gxf5 {[%clk 0:00:02]} 54. Qxf5 {[%clk 0:00:07]}  Qd2+ {[%clk 0:00:03]} 55. Kh3 {[%clk 0:00:07]}  Qd6 {[%clk 0:00:01]} 56. Qh7# {[%clk 0:00:06]} 1-0


[Site "https://www.chess.com"]

[Event "Titled Tuesday Blitz November 14 Late 2023"]
[White "Rohan, Ahuja"]
[Black "jactorres"]
[WhiteFideId "5090598"]
[WhiteElo "2707"]
[BlackElo "2511"]
[Result "1-0"]
[Round "3"]
[TimeControl "180+1"]
[Date "2023.11.14"]
[WhiteClock "0:00:38"]
[BlackClock "0:00:06"]
[Board "61"]

1. Nf3 {[%clk 0:03:00]}  Nf6 {[%clk 0:02:59]} 2. g3 {[%clk 0:03:01]}  b6 {[%clk 0:02:57]} 3. Bg2 {[%clk 0:03:02]}  Bb7 {[%clk 0:02:58]} 4. O-O {[%clk 0:03:03]}  e6 {[%clk 0:02:57]} 5. c4 {[%clk 0:03:03]}  c5 {[%clk 0:02:57]} 6. Nc3 {[%clk 0:03:03]}  Be7 {[%clk 0:02:57]} 7. d4 {[%clk 0:03:04]}  cxd4 {[%clk 0:02:49]} 8. Qxd4 {[%clk 0:03:05]}  Nc6 {[%clk 0:02:49]} 9. Qf4 {[%clk 0:03:05]}  O-O {[%clk 0:02:28]} 10. Rd1 {[%clk 0:03:01]}  Rc8 {[%clk 0:02:24]} 11. b3 {[%clk 0:02:55]}  Qc7 {[%clk 0:01:53]} 12. Qxc7 {[%clk 0:02:50]}  Rxc7 {[%clk 0:01:54]} 13. Nb5 {[%clk 0:02:49]}  Rcc8 {[%clk 0:01:54]} 14. Bf4 {[%clk 0:02:50]}  d5 {[%clk 0:01:51]} 15. Ne5 {[%clk 0:02:16]}  Nxe5 {[%clk 0:01:14]} 16. Bxe5 {[%clk 0:02:12]}  a6 {[%clk 0:01:14]} 17. Nd6 {[%clk 0:01:58]}  Bxd6 {[%clk 0:01:05]} 18. Bxd6 {[%clk 0:01:58]}  Rfe8 {[%clk 0:00:56]} 19. Be5 {[%clk 0:01:51]}  Ne4 {[%clk 0:00:45]} 20. Bxe4 {[%clk 0:01:45]}  dxe4 {[%clk 0:00:46]} 21. Rd6 {[%clk 0:01:30]}  f6 {[%clk 0:00:21]} 22. Bd4 {[%clk 0:01:12]}  b5 {[%clk 0:00:21]} 23. Rb6 {[%clk 0:01:08]}  Bc6 {[%clk 0:00:15]} 24. Rxa6 {[%clk 0:01:06]}  bxc4 {[%clk 0:00:16]} 25. bxc4 {[%clk 0:01:06]}  Bb7 {[%clk 0:00:15]} 26. Ra7 {[%clk 0:01:02]}  Rxc4 {[%clk 0:00:16]} 27. Bxf6 {[%clk 0:00:57]}  gxf6 {[%clk 0:00:17]} 28. Rxb7 {[%clk 0:00:57]}  Rc2 {[%clk 0:00:13]} 29. a4 {[%clk 0:00:40]}  Rd8 {[%clk 0:00:13]} 30. a5 {[%clk 0:00:35]}  Rdd2 {[%clk 0:00:13]} 31. a6 {[%clk 0:00:36]}  Rxe2 {[%clk 0:00:13]} 32. Rf1 {[%clk 0:00:36]}  Ra2 {[%clk 0:00:13]} 33. a7 {[%clk 0:00:36]}  e3 {[%clk 0:00:10]} 34. Rb8+ {[%clk 0:00:36]}  Kg7 {[%clk 0:00:10]} 35. a8=Q {[%clk 0:00:37]}  exf2+ {[%clk 0:00:11]} 36. Kg2 {[%clk 0:00:37]}  Rxa8 {[%clk 0:00:06]} 37. Rxa8 {[%clk 0:00:38]} 1-0


[Site "https://www.chess.com"]

[Event "Titled Tuesday Blitz November 14 Late 2023"]
[White "Hamitevici, Vladimir"]
[Black "Pesotskiy, Mikhail"]
[WhiteFideId "13902393"]
[BlackFideId "34164453"]
[WhiteElo "2697"]
[BlackElo "2509"]
[Result "1-0"]
[Round "3"]
[TimeControl "180+1"]
[Date "2023.11.14"]
[WhiteClock "0:01:14"]
[BlackClock "0:01:17"]
[Board "63"]

1. e4 {[%clk 0:03:00]}  e6 {[%clk 0:03:00]} 2. f4 {[%clk 0:02:56]}  d5 {[%clk 0:03:00]} 3. e5 {[%clk 0:02:56]}  c5 {[%clk 0:03:00]} 4. Nf3 {[%clk 0:02:56]}  Nc6 {[%clk 0:03:01]} 5. c3 {[%clk 0:02:56]}  Qb6 {[%clk 0:03:00]} 6. Na3 {[%clk 0:02:55]}  f6 {[%clk 0:02:57]} 7. Nc2 {[%clk 0:02:52]}  Bd7 {[%clk 0:02:45]} 8. d4 {[%clk 0:02:48]}  cxd4 {[%clk 0:02:44]} 9. cxd4 {[%clk 0:02:48]}  Nb4 {[%clk 0:02:44]} 10. Nxb4 {[%clk 0:02:43]}  Bxb4+ {[%clk 0:02:45]} 11. Bd2 {[%clk 0:02:41]}  Ne7 {[%clk 0:02:42]} 12. Bxb4 {[%clk 0:02:25]}  Qxb4+ {[%clk 0:02:41]} 13. Qd2 {[%clk 0:02:26]}  Qxd2+ {[%clk 0:02:39]} 14. Kxd2 {[%clk 0:02:26]}  Rc8 {[%clk 0:02:36]} 15. Bd3 {[%clk 0:02:24]}  O-O {[%clk 0:02:16]} 16. Rac1 {[%clk 0:02:15]}  Rxc1 {[%clk 0:02:15]} 17. Rxc1 {[%clk 0:02:16]}  Rc8 {[%clk 0:02:15]} 18. Rg1 {[%clk 0:02:15]}  Be8 {[%clk 0:02:13]} 19. g4 {[%clk 0:02:10]}  fxe5 {[%clk 0:02:08]} 20. dxe5 {[%clk 0:01:57]}  Bg6 {[%clk 0:02:01]} 21. Nd4 {[%clk 0:01:57]}  Bxd3 {[%clk 0:01:55]} 22. Kxd3 {[%clk 0:01:58]}  Kf7 {[%clk 0:01:43]} 23. Nb5 {[%clk 0:01:46]}  Rc5 {[%clk 0:01:26]} 24. Nd6+ {[%clk 0:01:45]}  Kg6 {[%clk 0:01:25]} 25. f5+ {[%clk 0:01:20]}  exf5 {[%clk 0:01:20]} 26. gxf5+ {[%clk 0:01:19]}  Kh6 {[%clk 0:01:20]} 27. Nf7+ {[%clk 0:01:13]}  Kh5 {[%clk 0:01:20]} 28. Rxg7 {[%clk 0:01:13]}  Nxf5 {[%clk 0:01:17]} 29. Rg5+ {[%clk 0:01:14]} 1-0


[Site "https://www.chess.com"]